[Event "MPL-1 Indian Chess Tour 2022"]
[Site "Online"]
[Date "2022.03.27"]
[Round "13.6"]
[White "Lalith Babu M R"]
[Black "Harika, Dronavalli"]
[Result "1/2-1/2"]
[ECO "A57"]
[WhiteElo "2563"]
[BlackElo "2517"]
[Annotator "ChessBase"]
[PlyCount "148"]
[EventDate "2022.03.30"]
[EventType "tourn"]
[EventCountry "NET"]
[SourceTitle "playchess.com"]
[Source "ChessBase"]
[SourceQuality "1"]
[TimeControl "5400+30"]

1. d4 {[%emt 1:15:40]} Nf6 {[%emt 1:15:40]} 2. c4 {[%emt 0:00:23]} c5 {[%emt 0:00:22]} 3. d5 {[%emt 0:00:22]} b5 {[%emt 0:00:21]} 4. cxb5 {[%emt 0:00:27]} a6 {[%emt 0:00:21]} 5. b6 {[%emt 0:00:31]} e6 {[%emt 0:00:25]} 6. Nc3 {[%emt 0:00:35]} exd5 {[%emt 0:00:32]} 7. Nxd5 {[%emt 0:00:22]} Nxd5 {[%emt 0:00:21]} 8. Qxd5 {[%emt 0:00:22]} Nc6 {[%emt 0:00:20]} 9. e3 {[%emt 0:00:30]} Be7 {[%emt 0:00:28]} 10. Bc4 {[%emt 0:00:29]} O-O {[%emt 0:00:22]} 11. Nf3 {[%emt 0:00:21]} Rb8 {[%emt 0:00:47]} 12. O-O {[%emt 0:00:22]} Rxb6 {[%emt 0:00:30]} 13. Bd2 {[%emt 0:01:12]} d6 {[%emt 0:01:27]} 14. Qe4 {[%emt 0:01:07]} Nb4 {[%emt 0:01:22]} 15. Bxb4 {[%emt 0:05:13]} Rxb4 {[%emt 0:00:34]} 16. b3 {[%emt 0:00:21]} Bb7 {[%emt 0:01:50]} 17. Qf5 {[%emt 0:00:23]} g6 {[%emt 0:03:23]} 18. Qh3 {[%emt 0:00:23]} d5 {[%emt 0:01:08]} 19. Rad1 {[%emt 0:00:32]} Qa8 {[%emt 0:00:51]} 20. Be2 {[%emt 0:00:41]} Qc8 {[%emt 0:01:21]} 21. Qxc8 {[%emt 0:01:36]} Rxc8 {[%emt 0:00:22]} 22. Ne5 {[%emt 0:00:20]} Bf6 {[%emt 0:01:34]} 23. Nd3 {[%emt 0:00:22]} Rb6 {[%emt 0:00:23]} 24. Nf4 {[%emt 0:00:22]} d4 {[%emt 0:00:28]} 25. exd4 {[%emt 0:00:39]} cxd4 {[%emt 0:00:54]} 26. Bc4 {[%emt 0:00:23]} Rd6 {[%emt 0:00:29]} 27. Rfe1 {[%emt 0:00:29]} Kg7 {[%emt 0:00:27]} 28. Kf1 {[%emt 0:00:32]} a5 {[%emt 0:00:23]} 29. Nd3 {[%emt 0:00:24]} a4 {[%emt 0:00:54]} 30. Ne5 {[%emt 0:01:00]} axb3 {[%emt 0:00:42]} 31. axb3 {[%emt 0:00:22]} Rc7 {[%emt 0:00:52]} 32. Nd3 {[%emt 0:01:06]} h5 {[%emt 0:01:01]} 33. Ra1 {[%emt 0:00:31]} Bc8 {[%emt 0:01:07]} 34. Ra5 {[%emt 0:00:51]} Bf5 {[%emt 0:01:16]} 35. Rd1 {[%emt 0:00:35]} Bxd3+ {[%emt 0:00:58]} 36. Rxd3 {[%emt 0:00:21]} Re7 {[%emt 0:00:22]} 37. g3 {[%emt 0:00:25]} h4 {[%emt 0:00:41]} 38. g4 {[%emt 0:00:25]} Re5 {[%emt 0:00:43]} 39. Ra8 {[%emt 0:00:28]} Re4 {[%emt 0:00:33]} 40. h3 {[%emt 0:00:25]} Rd7 {[%emt 0:00:26]} 41. Kg2 {[%emt 0:00:25]} Rde7 {[%emt 0:00:23]} 42. Rf3 {[%emt 0:00:28]} Be5 {[%emt 0:00:44]} 43. Ra1 {[%emt 0:01:26]} Rf4 {[%emt 0:00:32]} 44. Rxf4 {[%emt 0:00:30]} Bxf4 {[%emt 0:00:20]} 45. Kf3 {[%emt 0:00:27]} Be5 {[%emt 0:00:49]} 46. Rb1 {[%emt 0:00:47]} Kf6 {[%emt 0:00:38]} 47. b4 {[%emt 0:00:21]} Rc7 {[%emt 0:00:21]} 48. Bd3 {[%emt 0:00:22]} Rc3 {[%emt 0:00:27]} 49. Ke4 {[%emt 0:00:41]} Ke6 {[%emt 0:00:26]} 50. g5 {[%emt 0:00:21]} f5+ {[%emt 0:01:35]} 51. gxf6 {[%emt 0:00:22]} Kxf6 {[%emt 0:00:22]} 52. b5 {[%emt 0:00:20]} Rc7 {[%emt 0:00:44]} 53. b6 {[%emt 0:00:22]} Rb7 {[%emt 0:00:27]} 54. Kd5 {[%emt 0:00:43]} Rd7+ {[%emt 0:00:41]} 55. Kc6 {[%emt 0:00:28]} Rd6+ {[%emt 0:00:23]} 56. Kc5 {[%emt 0:00:20]} Rd8 {[%emt 0:00:40]} 57. b7 {[%emt 0:00:21]} g5 {[%emt 0:00:26]} 58. Rb6+ {[%emt 0:00:24]} Ke7 {[%emt 0:00:27]} 59. f3 {[%emt 0:00:44]} Bf4 {[%emt 0:00:27]} 60. Rh6 {[%emt 0:00:36]} Kd7 {[%emt 0:00:33]} 61. Rc6 {[%emt 0:00:53]} Ke7 {[%emt 0:00:29]} 62. Rc8 {[%emt 0:00:27]} Kd7 {[%emt 0:00:37]} 63. Kxd4 {[%emt 0:00:30]} Ke7+ {[%emt 0:00:27]} 64. Kc4 {[%emt 0:00:25]} Kd7 {[%emt 0:00:26]} 65. Bf5+ {[%emt 0:00:23]} Ke7 {[%emt 0:00:21]} 66. Kc5 {[%emt 0:00:21]} Be3+ {[%emt 0:00:24]} 67. Kc6 {[%emt 0:00:26]} Rd6+ {[%emt 0:00:36]} 68. Kc7 {[%emt 0:00:23]} Bf4 {[%emt 0:00:21]} 69. b8=Q {[%emt 0:00:35]} Rf6+ {[%emt 0:00:22]} 70. Kb7 {[%emt 0:00:39]} Bxb8 {[%emt 0:00:21]} 71. Bg4 {[%emt 0:00:22]} Bf4 {[%emt 0:00:25]} 72. Rc2 {[%emt 0:00:31]} Rd6 {[%emt 0:00:22]} 73. Re2+ {[%emt 0:00:22]} Kf6 {[%emt 0:00:22]} 74. Kc8 {[%emt 0:00:46]} Kf7 {[%emt 0:00:22]} 1/2-1/2

[Event "MPL-1 Indian Chess Tour 2022"]
[Site "Online"]
[Date "2022.03.27"]
[Round "13.8"]
[White "Sankalp Gupta"]
[Black "Erigaisi Arjun"]
[Result "0-1"]
[ECO "B01"]
[WhiteElo "2536"]
[BlackElo "2633"]
[Annotator "ChessBase"]
[PlyCount "80"]
[EventDate "2022.03.30"]
[EventType "tourn"]
[EventCountry "NET"]
[SourceTitle "playchess.com"]
[Source "ChessBase"]
[SourceQuality "1"]
[TimeControl "5400+30"]

1. e4 {[%emt 1:15:40]} d5 {[%emt 1:15:40]} 2. exd5 {[%emt 0:00:22]} Qxd5 {[%emt 0:00:20]} 3. Nc3 {[%emt 0:00:33]} Qa5 {[%emt 0:00:23]} 4. Bc4 {[%emt 0:00:24]} Nf6 {[%emt 0:00:24]} 5. d4 {[%emt 0:00:53]} Bg4 {[%emt 0:00:30]} 6. f3 {[%emt 0:00:39]} Bd7 {[%emt 0:00:23]} 7. Nge2 {[%emt 0:00:44]} c5 {[%emt 0:00:29]} 8. dxc5 {[%emt 0:01:04]} e6 {[%emt 0:01:04]} 9. Be3 {[%emt 0:00:32]} Bxc5 {[%emt 0:00:25]} 10. Bxc5 {[%emt 0:01:14]} Qxc5 {[%emt 0:00:20]} 11. Qd4 {[%emt 0:00:21]} Qxd4 {[%emt 0:00:59]} 12. Nxd4 {[%emt 0:00:20]} Nc6 {[%emt 0:00:20]} 13. Ndb5 {[%emt 0:01:03]} Ke7 {[%emt 0:00:40]} 14. O-O-O {[%emt 0:00:22]} Na5 {[%emt 0:00:54]} 15. Be2 {[%emt 0:00:46]} Rhd8 {[%emt 0:00:46]} 16. Rd2 {[%emt 0:00:44]} Bxb5 {[%emt 0:01:23]} 17. Bxb5 {[%emt 0:00:32]} Rxd2 {[%emt 0:00:38]} 18. Kxd2 {[%emt 0:00:20]} g5 {[%emt 0:00:20]} 19. b4 {[%emt 0:00:45]} Rd8+ {[%emt 0:00:47]} 20. Ke3 {[%emt 0:01:03]} Rc8 {[%emt 0:00:25]} 21. Kd3 {[%emt 0:00:21]} Nc6 {[%emt 0:00:26]} 22. Bxc6 {[%emt 0:00:47]} Rxc6 {[%emt 0:00:20]} 23. a4 {[%emt 0:00:27]} Nd7 {[%emt 0:00:34]} 24. Re1 {[%emt 0:00:39]} Rd6+ {[%emt 0:00:46]} 25. Kc4 {[%emt 0:00:54]} Rd2 {[%emt 0:01:59]} 26. Re2 {[%emt 0:00:36]} Rxe2 {[%emt 0:00:21]} 27. Nxe2 {[%emt 0:00:20]} Kd6 {[%emt 0:00:20]} 28. Nc3 {[%emt 0:00:38]} Ke5 {[%emt 0:00:44]} 29. a5 {[%emt 0:01:00]} f5 {[%emt 0:00:29]} 30. b5 {[%emt 0:00:35]} Kd6 {[%emt 0:02:29]} 31. Ne2 {[%emt 0:00:23]} h5 {[%emt 0:00:39]} 32. Kb4 {[%emt 0:02:43]} h4 {[%emt 0:00:35]} 33. h3 {[%emt 0:00:53]} e5 {[%emt 0:00:42]} 34. c4 {[%emt 0:00:51]} Nc5 {[%emt 0:00:29]} 35. Kc3 {[%emt 0:00:25]} Ne6 {[%emt 0:03:54]} 36. g4 {[%emt 0:00:22]} fxg4 {[%emt 0:02:21]} 37. fxg4 {[%emt 0:00:20]} Nf4 {[%emt 0:00:21]} 38. Ng1 {[%emt 0:00:21]} Kc5 {[%emt 0:00:53]} 39. Nf3 {[%emt 0:00:47]} Nxh3 {[%emt 0:00:21]} 40. Nxg5 {[%emt 0:01:30]} Nxg5 {[%emt 0:00:25]} 0-1

[Event "MPL-1 Indian Chess Tour 2022"]
[Site "Online"]
[Date "2022.03.27"]
[Round "14.1"]
[White "Sethuraman, S.P."]
[Black "Erigaisi Arjun"]
[Result "1/2-1/2"]
[ECO "E48"]
[WhiteElo "2619"]
[BlackElo "2633"]
[Annotator "ChessBase"]
[PlyCount "86"]
[EventDate "2022.03.30"]
[EventType "tourn"]
[EventCountry "NET"]
[SourceTitle "playchess.com"]
[Source "ChessBase"]
[SourceQuality "1"]
[TimeControl "5400+30"]

1. d4 {[%emt 1:15:40]} Nf6 {[%emt 1:15:40]} 2. c4 {[%emt 0:00:22]} e6 {[%emt 0:00:22]} 3. Nc3 {[%emt 0:00:21]} Bb4 {[%emt 0:00:22]} 4. e3 {[%emt 0:00:21]} O-O {[%emt 0:00:23]} 5. Bd3 {[%emt 0:00:22]} d5 {[%emt 0:00:30]} 6. cxd5 {[%emt 0:00:24]} exd5 {[%emt 0:00:29]} 7. a3 {[%emt 0:00:21]} Bd6 {[%emt 0:00:42]} 8. Nge2 {[%emt 0:00:28]} Re8 {[%emt 0:00:30]} 9. Qc2 {[%emt 0:00:26]} c5 {[%emt 0:01:21]} 10. dxc5 {[%emt 0:03:55]} Bxc5 {[%emt 0:00:20]} 11. O-O {[%emt 0:01:28]} Nc6 {[%emt 0:01:47]} 12. Rd1 {[%emt 0:01:00]} Bb6 {[%emt 0:00:35]} 13. Ng3 {[%emt 0:03:51]} Bg4 {[%emt 0:00:39]} 14. Be2 {[%emt 0:00:29]} Bxe2 {[%emt 0:01:49]} 15. Ncxe2 {[%emt 0:00:21]} Rc8 {[%emt 0:00:24]} 16. Bd2 {[%emt 0:00:36]} Nd4 {[%emt 0:02:25]} 17. Qd3 {[%emt 0:00:24]} Nxe2+ {[%emt 0:00:21]} 18. Nxe2 {[%emt 0:00:25]} Ba5 {[%emt 0:00:26]} 19. Bxa5 {[%emt 0:01:03]} Qxa5 {[%emt 0:00:20]} 20. Rac1 {[%emt 0:01:19]} h6 {[%emt 0:00:32]} 21. h3 {[%emt 0:00:31]} Qb6 {[%emt 0:00:22]} 22. b3 {[%emt 0:00:49]} a6 {[%emt 0:01:10]} 23. Rc2 {[%emt 0:00:55]} Rc6 {[%emt 0:01:49]} 24. Rdc1 {[%emt 0:01:07]} Rec8 {[%emt 0:00:25]} 25. Nd4 {[%emt 0:00:24]} Rxc2 {[%emt 0:00:43]} 26. Rxc2 {[%emt 0:00:20]} Qd8 {[%emt 0:00:22]} 27. Qf5 {[%emt 0:01:28]} Rxc2 {[%emt 0:00:24]} 28. Qxc2 {[%emt 0:00:21]} Ne4 {[%emt 0:00:34]} 29. f3 {[%emt 0:00:49]} Ng5 {[%emt 0:00:39]} 30. Qf5 {[%emt 0:01:07]} Qe7 {[%emt 0:00:59]} 31. Kf2 {[%emt 0:00:26]} Qxa3 {[%emt 0:00:48]} 32. Qc8+ {[%emt 0:01:10]} Kh7 {[%emt 0:01:00]} 33. Qf5+ {[%emt 0:00:22]} Kg8 {[%emt 0:00:27]} 34. Qxd5 {[%emt 0:00:50]} Qb2+ {[%emt 0:00:41]} 35. Kg3 {[%emt 0:00:34]} Qd2 {[%emt 0:01:20]} 36. Qe5 {[%emt 0:00:46]} Qe1+ {[%emt 0:00:45]} 37. Kh2 {[%emt 0:00:22]} Qb4 {[%emt 0:00:23]} 38. h4 {[%emt 0:01:12]} Ne6 {[%emt 0:00:29]} 39. Nxe6 {[%emt 0:01:08]} Qxh4+ {[%emt 0:00:24]} 40. Kg1 {[%emt 0:00:21]} Qe1+ {[%emt 0:00:19]} 41. Kh2 {[%emt 0:00:21]} Qh4+ {[%emt 0:00:20]} 42. Kg1 {[%emt 0:00:21]} Qe1+ {[%emt 0:00:20]} 43. Kh2 {[%emt 0:00:21]} Qh4+ {[%emt 0:00:20]} 1/2-1/2

[Event "MPL-1 Indian Chess Tour 2022"]
[Site "Online"]
[Date "2022.03.27"]
[Round "14.3"]
[White "Harika, Dronavalli"]
[Black "Puranik, Abhimanyu"]
[Result "1-0"]
[ECO "B22"]
[WhiteElo "2517"]
[BlackElo "2618"]
[Annotator "ChessBase"]
[PlyCount "81"]
[EventDate "2022.03.30"]
[EventType "tourn"]
[EventCountry "NET"]
[SourceTitle "playchess.com"]
[Source "ChessBase"]
[SourceQuality "1"]
[TimeControl "5400+30"]

1. e4 {[%emt 1:15:40]} c5 {[%emt 1:15:40]} 2. c3 {[%emt 0:00:29]} d5 {[%emt 0:00:23]} 3. exd5 {[%emt 0:00:22]} Nf6 {[%emt 0:00:28]} 4. Bb5+ {[%emt 0:00:40]} Nbd7 {[%emt 0:00:57]} 5. d4 {[%emt 0:01:04]} Nxd5 {[%emt 0:01:01]} 6. dxc5 {[%emt 0:00:54]} e6 {[%emt 0:00:21]} 7. c6 {[%emt 0:00:28]} bxc6 {[%emt 0:00:21]} 8. Bxc6 {[%emt 0:00:21]} Rb8 {[%emt 0:00:21]} 9. Ne2 {[%emt 0:01:17]} Bd6 {[%emt 0:00:57]} 10. Bxd5 {[%emt 0:01:08]} exd5 {[%emt 0:00:22]} 11. O-O {[%emt 0:00:24]} Qc7 {[%emt 0:00:59]} 12. Ng3 {[%emt 0:00:49]} O-O {[%emt 0:00:30]} 13. Nd2 {[%emt 0:00:22]} Ne5 {[%emt 0:00:34]} 14. Nb3 {[%emt 0:00:59]} Ba6 {[%emt 0:01:14]} 15. Re1 {[%emt 0:01:53]} Nd3 {[%emt 0:00:22]} 16. Re3 {[%emt 0:01:48]} Nxc1 {[%emt 0:00:23]} 17. Nxc1 {[%emt 0:00:21]} Bc5 {[%emt 0:01:11]} 18. Rf3 {[%emt 0:00:22]} Rxb2 {[%emt 0:00:22]} 19. Nd3 {[%emt 0:00:24]} Bxd3 {[%emt 0:00:31]} 20. Qxd3 {[%emt 0:00:21]} Qb6 {[%emt 0:00:38]} 21. Rf1 {[%emt 0:00:24]} Qe6 {[%emt 0:01:56]} 22. Nh5 {[%emt 0:02:07]} Rxa2 {[%emt 0:02:38]} 23. Nf4 {[%emt 0:01:38]} Qe4 {[%emt 0:00:22]} 24. Qxd5 {[%emt 0:01:02]} Qxd5 {[%emt 0:00:34]} 25. Nxd5 {[%emt 0:00:21]} Re8 {[%emt 0:00:59]} 26. Rf5 {[%emt 0:00:45]} Bf8 {[%emt 0:00:57]} 27. g3 {[%emt 0:01:35]} a5 {[%emt 0:04:06]} 28. Rb1 {[%emt 0:00:21]} a4 {[%emt 0:00:42]} 29. Rb7 {[%emt 0:00:21]} a3 {[%emt 0:01:01]} 30. Nb4 {[%emt 0:04:11]} Ra1+ {[%emt 0:01:30]} 31. Kg2 {[%emt 0:00:22]} f6 {[%emt 0:00:21]} 32. Ra5 {[%emt 0:00:27]} Rc8 {[%emt 0:00:41]} 33. Raa7 {[%emt 0:00:31]} h5 {[%emt 0:00:58]} 34. Nd5 {[%emt 0:00:27]} Rc5 {[%emt 0:01:13]} 35. Rd7 {[%emt 0:00:54]} a2 {[%emt 0:00:37]} 36. Rd8 {[%emt 0:01:00]} h4 {[%emt 0:01:00]} 37. Ne7+ {[%emt 0:00:39]} Kf7 {[%emt 0:00:23]} 38. Nf5+ {[%emt 0:00:33]} Kg6 {[%emt 0:00:26]} 39. Nxh4+ {[%emt 0:00:21]} Kh7 {[%emt 0:00:41]} 40. Rxf8 {[%emt 0:00:26]} Rxc3 {[%emt 0:00:31]} 41. Rff7 {[%emt 0:00:27]} 1-0

[Event "MPL-1 Indian Chess Tour 2022"]
[Site "Online"]
[Date "2022.03.27"]
[Round "14.5"]
[White "Mendonca, Leon Luke"]
[Black "Iniyan, P."]
[Result "0-1"]
[ECO "A30"]
[WhiteElo "2536"]
[BlackElo "2516"]
[Annotator "ChessBase"]
[PlyCount "122"]
[EventDate "2022.03.30"]
[EventType "tourn"]
[EventCountry "NET"]
[SourceTitle "playchess.com"]
[Source "ChessBase"]
[SourceQuality "1"]
[TimeControl "5400+30"]

1. Nf3 {[%emt 1:15:40]} Nf6 {[%emt 1:15:40]} 2. c4 {[%emt 0:00:24]} e6 {[%emt 0:00:25]} 3. Nc3 {[%emt 0:00:24]} c5 {[%emt 0:00:23]} 4. g3 {[%emt 0:00:25]} b6 {[%emt 0:00:26]} 5. Bg2 {[%emt 0:00:25]} Bb7 {[%emt 0:00:21]} 6. O-O {[%emt 0:00:22]} Be7 {[%emt 0:00:22]} 7. d4 {[%emt 0:00:43]} cxd4 {[%emt 0:00:20]} 8. Qxd4 {[%emt 0:00:23]} O-O {[%emt 0:00:45]} 9. Rd1 {[%emt 0:00:31]} Qc8 {[%emt 0:02:16]} 10. Bf4 {[%emt 0:02:59]} Nc6 {[%emt 0:00:23]} 11. Qd2 {[%emt 0:00:33]} d6 {[%emt 0:01:20]} 12. Rac1 {[%emt 0:05:19]} Na5 {[%emt 0:01:33]} 13. b3 {[%emt 0:00:25]} Rd8 {[%emt 0:00:25]} 14. h3 {[%emt 0:00:37]} h6 {[%emt 0:01:13]} 15. g4 {[%emt 0:00:38]} Ne4 {[%emt 0:01:13]} 16. Nxe4 {[%emt 0:00:42]} Bxe4 {[%emt 0:00:20]} 17. Qe3 {[%emt 0:00:43]} Bb7 {[%emt 0:00:54]} 18. Bg3 {[%emt 0:00:44]} Qc7 {[%emt 0:01:15]} 19. h4 {[%emt 0:01:46]} Rac8 {[%emt 0:00:41]} 20. Nd4 {[%emt 0:02:26]} Bxg2 {[%emt 0:00:34]} 21. Kxg2 {[%emt 0:00:20]} Qb7+ {[%emt 0:00:36]} 22. Qf3 {[%emt 0:00:45]} Qxf3+ {[%emt 0:01:49]} 23. Kxf3 {[%emt 0:00:22]} a6 {[%emt 0:00:33]} 24. h5 {[%emt 0:01:00]} Bf6 {[%emt 0:01:01]} 25. e3 {[%emt 0:01:01]} Kf8 {[%emt 0:00:36]} 26. Rc2 {[%emt 0:01:13]} Ke8 {[%emt 0:01:29]} 27. Rcd2 {[%emt 0:01:45]} d5 {[%emt 0:00:42]} 28. cxd5 {[%emt 0:00:22]} Rxd5 {[%emt 0:00:20]} 29. Ke2 {[%emt 0:00:37]} Nb7 {[%emt 0:01:12]} 30. Nf3 {[%emt 0:00:53]} Rxd2+ {[%emt 0:00:27]} 31. Rxd2 {[%emt 0:00:21]} Nc5 {[%emt 0:00:35]} 32. Rc2 {[%emt 0:00:27]} Kd7 {[%emt 0:01:47]} 33. Ne5+ {[%emt 0:00:37]} Bxe5 {[%emt 0:00:22]} 34. Bxe5 {[%emt 0:00:21]} f6 {[%emt 0:00:20]} 35. Bd4 {[%emt 0:00:23]} Nxb3 {[%emt 0:00:23]} 36. Rb2 {[%emt 0:00:39]} Nxd4+ {[%emt 0:00:22]} 37. exd4 {[%emt 0:00:21]} b5 {[%emt 0:00:31]} 38. Kd3 {[%emt 0:00:55]} Rc4 {[%emt 0:00:22]} 39. f4 {[%emt 0:00:35]} Kd6 {[%emt 0:00:22]} 40. g5 {[%emt 0:00:21]} fxg5 {[%emt 0:01:06]} 41. fxg5 {[%emt 0:00:22]} Kd5 {[%emt 0:00:21]} 42. g6 {[%emt 0:00:46]} Rxd4+ {[%emt 0:00:32]} 43. Kc3 {[%emt 0:00:21]} e5 {[%emt 0:01:57]} 44. Rf2 {[%emt 0:00:44]} Rf4 {[%emt 0:00:22]} 45. Rd2+ {[%emt 0:00:29]} Ke6 {[%emt 0:00:21]} 46. Rd8 {[%emt 0:00:36]} Ra4 {[%emt 0:01:38]} 47. Kb3 {[%emt 0:00:58]} Kf6 {[%emt 0:00:25]} 48. Rd7 {[%emt 0:00:29]} Kg5 {[%emt 0:00:54]} 49. Rxg7 {[%emt 0:00:24]} Kxh5 {[%emt 0:00:21]} 50. Rg8 {[%emt 0:00:37]} e4 {[%emt 0:00:26]} 51. a3 {[%emt 0:00:33]} e3 {[%emt 0:00:39]} 52. Re8 {[%emt 0:00:26]} Kxg6 {[%emt 0:00:21]} 53. Rxe3 {[%emt 0:00:21]} h5 {[%emt 0:00:21]} 54. Re8 {[%emt 0:00:22]} h4 {[%emt 0:00:23]} 55. Rg8+ {[%emt 0:00:25]} Kf5 {[%emt 0:00:22]} 56. Rh8 {[%emt 0:00:22]} Kg4 {[%emt 0:00:21]} 57. Rg8+ {[%emt 0:00:20]} Kf3 {[%emt 0:00:22]} 58. Rh8 {[%emt 0:00:23]} Kg3 {[%emt 0:00:21]} 59. Rg8+ {[%emt 0:00:21]} Rg4 {[%emt 0:00:22]} 60. Ra8 {[%emt 0:00:21]} h3 {[%emt 0:00:24]} 61. Rxa6 {[%emt 0:00:24]} h2 {[%emt 0:00:21]} 0-1

[Event "MPL-1 Indian Chess Tour 2022"]
[Site "Online"]
[Date "2022.03.31"]
[Round "14.7"]
[White "Karthikeyan, Murali"]
[Black "Sadhwani, Raunak"]
[Result "0-1"]
[ECO "A09"]
[WhiteElo "2622"]
[BlackElo "2616"]
[Annotator "ChessBase"]
[PlyCount "54"]
[EventDate "2022.03.30"]
[EventType "tourn"]
[EventCountry "NET"]
[SourceTitle "playchess.com"]
[Source "ChessBase"]
[SourceQuality "1"]
[TimeControl "5400+30"]

1. Nf3 {[%emt 1:15:40]} d5 {[%emt 1:15:40]} 2. g3 {[%emt 0:00:22]} g6 {[%emt 0:00:22]} 3. c4 {[%emt 0:00:38]} dxc4 {[%emt 0:00:21]} 4. Bg2 {[%emt 0:00:27]} Bg7 {[%emt 0:00:48]} 5. Qa4+ {[%emt 0:01:07]} Nc6 {[%emt 0:00:25]} 6. Qxc4 {[%emt 0:00:39]} e5 {[%emt 0:00:26]} 7. Nc3 {[%emt 0:00:39]} Nge7 {[%emt 0:00:24]} 8. d3 {[%emt 0:00:24]} O-O {[%emt 0:00:27]} 9. h4 {[%emt 0:00:39]} Be6 {[%emt 0:02:38]} 10. Qa4 {[%emt 0:00:23]} h6 {[%emt 0:00:36]} 11. O-O {[%emt 0:05:32]} Nd4 {[%emt 0:01:29]} 12. Be3 {[%emt 0:01:18]} Nef5 {[%emt 0:01:33]} 13. Bxd4 {[%emt 0:00:26]} exd4 {[%emt 0:01:19]} 14. Ne4 {[%emt 0:00:26]} Bd5 {[%emt 0:00:39]} 15. Rfc1 {[%emt 0:00:52]} Re8 {[%emt 0:00:53]} 16. h5 {[%emt 0:02:08]} g5 {[%emt 0:01:41]} 17. g4 {[%emt 0:01:50]} Nh4 {[%emt 0:04:37]} 18. Nxh4 {[%emt 0:00:27]} gxh4 {[%emt 0:00:20]} 19. Qb5 {[%emt 0:01:22]} Re5 {[%emt 0:01:50]} 20. Rc5 {[%emt 0:03:28]} a6 {[%emt 0:00:34]} 21. Qa5 {[%emt 0:01:42]} Bxe4 {[%emt 0:00:40]} 22. Rxe5 {[%emt 0:00:36]} b6 {[%emt 0:00:21]} 23. Bxe4 {[%emt 0:00:39]} bxa5 {[%emt 0:00:24]} 24. Rf5 {[%emt 0:00:21]} Rb8 {[%emt 0:00:43]} 25. b3 {[%emt 0:00:34]} Rb5 {[%emt 0:00:27]} 26. Rc1 {[%emt 0:00:22]} Rxf5 {[%emt 0:00:22]} 27. Bxf5 {[%emt 0:00:26]} Qe7 {[%emt 0:00:30]} 0-1

[Event "MPL-1 Indian Chess Tour 2022"]
[Site "Online"]
[Date "2022.03.27"]
[Round "14.8"]
[White "Aryan Chopra"]
[Black "Gukesh D"]
[Result "0-1"]
[ECO "B22"]
[WhiteElo "2585"]
[BlackElo "2614"]
[Annotator "ChessBase"]
[PlyCount "72"]
[EventDate "2022.03.30"]
[EventType "tourn"]
[EventCountry "NET"]
[SourceTitle "playchess.com"]
[Source "ChessBase"]
[SourceQuality "1"]
[TimeControl "5400+30"]

1. e4 {[%emt 1:15:40]} c5 {[%emt 1:15:40]} 2. c3 {[%emt 0:00:22]} Nf6 {[%emt 0:00:23]} 3. e5 {[%emt 0:00:22]} Nd5 {[%emt 0:00:21]} 4. d4 {[%emt 0:00:21]} cxd4 {[%emt 0:00:20]} 5. Nf3 {[%emt 0:00:21]} e6 {[%emt 0:00:21]} 6. cxd4 {[%emt 0:00:22]} d6 {[%emt 0:00:20]} 7. Bc4 {[%emt 0:00:22]} Be7 {[%emt 0:00:23]} 8. O-O {[%emt 0:00:21]} Nc6 {[%emt 0:00:23]} 9. Qe2 {[%emt 0:00:22]} O-O {[%emt 0:00:22]} 10. Rd1 {[%emt 0:00:22]} Na5 {[%emt 0:00:28]} 11. Bd3 {[%emt 0:00:23]} Nb4 {[%emt 0:00:26]} 12. Nc3 {[%emt 0:00:36]} Nxd3 {[%emt 0:00:23]} 13. Rxd3 {[%emt 0:00:22]} Bd7 {[%emt 0:00:25]} 14. Bf4 {[%emt 0:02:38]} dxe5 {[%emt 0:04:56]} 15. Nxe5 {[%emt 0:01:34]} Nc6 {[%emt 0:00:28]} 16. Rad1 {[%emt 0:00:23]} Bb4 {[%emt 0:01:43]} 17. Rh3 {[%emt 0:01:35]} g6 {[%emt 0:03:27]} 18. d5 {[%emt 0:08:53]} Nxe5 {[%emt 0:00:34]} 19. Bxe5 {[%emt 0:00:22]} Bxc3 {[%emt 0:00:40]} 20. Bxc3 {[%emt 0:00:27]} e5 {[%emt 0:00:21]} 21. Re3 {[%emt 0:00:55]} f6 {[%emt 0:00:23]} 22. Rxe5 {[%emt 0:00:27]} Rf7 {[%emt 0:02:57]} 23. d6 {[%emt 0:01:01]} Qf8 {[%emt 0:01:09]} 24. Re7 {[%emt 0:00:42]} Re8 {[%emt 0:01:14]} 25. Bxf6 {[%emt 0:01:28]} Rxf6 {[%emt 0:00:44]} 26. Qc4+ {[%emt 0:00:24]} Be6 {[%emt 0:00:29]} 27. Qc7 {[%emt 0:01:42]} Rf7 {[%emt 0:01:41]} 28. Qxb7 {[%emt 0:00:59]} Rfxe7 {[%emt 0:00:28]} 29. dxe7 {[%emt 0:00:26]} Qxe7 {[%emt 0:00:21]} 30. Qxe7 {[%emt 0:00:28]} Rxe7 {[%emt 0:00:21]} 31. b3 {[%emt 0:00:21]} Rd7 {[%emt 0:00:32]} 32. Ra1 {[%emt 0:00:54]} Rd2 {[%emt 0:00:23]} 33. h3 {[%emt 0:00:21]} Kf7 {[%emt 0:00:24]} 34. f3 {[%emt 0:00:21]} Bd5 {[%emt 0:00:34]} 35. Rc1 {[%emt 0:00:32]} Rxa2 {[%emt 0:00:29]} 36. Rc7+ {[%emt 0:00:28]} Kf6 {[%emt 0:00:55]} 0-1